Nominativi dei beneficiari,Data mandato,Natura economica,Importo,Numero mandato,TITNO_BL,2� livello,3� livello,4� livello,5� livello
ACQUE S.P.A.,05/10/2017,Acqua,"803,14",3239,1,3,2,5,5
ACQUE S.P.A.,05/10/2017,Acqua,"35,71",3242,1,3,2,5,5
FRATERNITA MISERICORDIA DI VINCI,05/10/2017,Acquisti di servizi di trasporto in emergenza e urgenza,"2.990,00",3256,1,3,2,18,13
STRUTTURE S.R.L. SOCIETA'  DI INGEGNERIA IN SIGLA STRUTTURE S.R.L.,05/10/2017,Altre prestazioni professionali e specialistiche n.a.c.,"3.491,54",3230,1,3,2,11,999
STRUTTURE S.R.L. SOCIETA'  DI INGEGNERIA IN SIGLA STRUTTURE S.R.L.,05/10/2017,Altre prestazioni professionali e specialistiche n.a.c.,"8.146,91",3231,1,3,2,11,999
PROMOCULTURA SOCIETA' COOPERATIVA A.R.L..,13/10/2017,Altre spese per contratti di servizio pubblico,"1.323,70",3296,1,3,2,15,999
ASSOCIAZIONE CULTURALE IL PONTE,26/10/2017,Altre spese per contratti di servizio pubblico,"3.943,39",3441,1,3,2,15,999
POSTE ITALIANE SPA SOCIETA' CON SOCIO UNICO,05/10/2017,Altre spese per servizi amministrativi,"388,07",3246,1,3,2,16,999
SOCIETA' CONSORTILE ENERGIA TOSCANA (C.E.T. S.C.R.L.),05/10/2017,Altre spese per servizi amministrativi,"687,88",3232,1,3,2,16,999
POSTE ITALIANE SPA SOCIETA' CON SOCIO UNICO,12/10/2017,Altre spese per servizi amministrativi,"674,90",3260,1,3,2,16,999
MARVOGLI STEFANIA,03/10/2017,Altri beni e materiali di consumo n.a.c.,"37,86",3228,1,3,1,2,999
MATERIALI EDILI BALDACCI DI BALDACCI RENATO E C. SNC,05/10/2017,Altri beni e materiali di consumo n.a.c.,"4,20",3237,1,3,1,2,999
MATERIALI EDILI BALDACCI DI BALDACCI RENATO E C. SNC,05/10/2017,Altri beni e materiali di consumo n.a.c.,"240,59",3238,1,3,1,2,999
MATERIALI EDILI BALDACCI DI BALDACCI RENATO E C. SNC,05/10/2017,Altri beni e materiali di consumo n.a.c.,"150,82",3240,1,3,1,2,999
SOC.ING.MAGNANI SRL,05/10/2017,Altri beni e materiali di consumo n.a.c.,"176,12",3243,1,3,1,2,999
DAMAZ S.R.L. - INGROSSO CASALINGHI,26/10/2017,Altri beni e materiali di consumo n.a.c.,"256,27",3438,1,3,1,2,999
L'ELETTRICA S.P.A.,26/10/2017,Altri beni e materiali di consumo n.a.c.,"1.105,28",3434,1,3,1,2,999
DROMEDIAN SRL,05/10/2017,Altri servizi diversi n.a.c.,"186,61",3252,1,3,2,99,999
DROMEDIAN SRL,05/10/2017,Altri servizi diversi n.a.c.,"5.913,39",3253,1,3,2,99,999
PROMOCULTURA SOCIETA' COOPERATIVA A.R.L..,05/10/2017,Altri servizi diversi n.a.c.,"2.999,00",3251,1,3,2,99,999
LE MACCHINE CELIBI SOCIETA' COOPERATIVA A RESPONSABILITA' LIMITATA,12/10/2017,Altri servizi diversi n.a.c.,"5.977,90",3265,1,3,2,99,999
LE MACCHINE CELIBI SOCIETA' COOPERATIVA A RESPONSABILITA' LIMITATA,12/10/2017,Altri servizi diversi n.a.c.,"6.707,67",3266,1,3,2,99,999
CENTRO TERMOTECNICA DI PASQUALI ANGELO E MASSIMO SNC,05/10/2017,Attrezzature n.a.c.,"4.239,81",3254,2,2,1,5,999
CENTRICA SRL,26/10/2017,Attrezzature n.a.c.,"5.307,00",3450,2,2,1,5,999
TOTALERG SPA,05/10/2017,"Carburanti, combustibili e lubrificanti ","253,89",3233,1,3,1,2,2
TOTALERG SPA,05/10/2017,"Carburanti, combustibili e lubrificanti ","409,72",3234,1,3,1,2,2
TOTALERG SPA,05/10/2017,"Carburanti, combustibili e lubrificanti ","445,78",3235,1,3,1,2,2
B & B UFFICIO SRL,03/10/2017,"Carta, cancelleria e stampati","49,00",3229,1,3,1,2,1
BARBATO ANGELA,03/10/2017,"Carta, cancelleria e stampati","10,50",3221,1,3,1,2,1
BAZAR CINELLI DI CINELLI ILARIA E PAOLO,03/10/2017,"Carta, cancelleria e stampati","7,40",3220,1,3,1,2,1
COOP. CULTURALE LIBRERIA RINASCITA,03/10/2017,"Carta, cancelleria e stampati","39,60",3227,1,3,1,2,1
DE AGOSTINI EDITORE SPA,03/10/2017,"Carta, cancelleria e stampati","50,00",3227,1,3,1,2,1
MEDIA WORLD - MEDIAMARKET SPA,03/10/2017,"Carta, cancelleria e stampati","107,91",3223,1,3,1,2,1
UFFICIO TECNICA S.R.L.,03/10/2017,"Carta, cancelleria e stampati","25,62",3223,1,3,1,2,1
VANNA CART & COPY DI MORELLI T. E M. SAS,03/10/2017,"Carta, cancelleria e stampati","51,00",3227,1,3,1,2,1
DE AGOSTINI EDITORE SPA,17/10/2017,"Carta, cancelleria e stampati","11,00",3312,1,3,1,2,1
MONTI ROBERTA,26/10/2017,"Carta, cancelleria e stampati","670,51",3447,1,3,1,2,1
COMUNE DI VINCI- CONTI CORRENTI POSTALI VARI,20/10/2017,Commissioni per servizi finanziari,"1.691,74",3319,1,3,2,17,1
ARCA - COOPERATIVA SOCIALE A R.L.,05/10/2017,Contratti di servizio di asilo nido,"41.753,13",3248,1,3,2,15,10
ARCA - COOPERATIVA SOCIALE A R.L.,12/10/2017,Contratti di servizio di asilo nido,"2.098,27",3263,1,3,2,15,10
ARCA - COOPERATIVA SOCIALE A R.L.,12/10/2017,Contratti di servizio di asilo nido,"1.468,49",3264,1,3,2,15,10
EREDI LEPORATTI S.A.S.,26/10/2017,Contratti di servizio di trasporto pubblico,"2.650,46",3439,1,3,2,15,1
EREDI LEPORATTI S.A.S.,26/10/2017,Contratti di servizio di trasporto pubblico,"857,14",3440,1,3,2,15,1
ALIA SERVIZI AMBIENTALI S.P.A.,30/10/2017,Contratti di servizio per la raccolta rifiuti,"179.528,60",3452,1,3,2,15,4
V.A.B. VIGILANZA ANTICENDI BOSCHIVI,09/10/2017,Contributi agli investimenti a Istituzioni Sociali Private ,"7.000,00",3258,2,3,4,1,1
GALA S.P.A.,05/10/2017,Energia elettrica,"42,41",3244,1,3,2,5,4
ENERGRID S.P.A.,09/10/2017,Energia elettrica,"15.535,15",3257,1,3,2,5,4
EDISON ENERGIA S.P.A.,13/10/2017,Energia elettrica,"2.191,24",3274,1,3,2,5,4
EDISON ENERGIA S.P.A.,13/10/2017,Energia elettrica,"273,97",3275,1,3,2,5,4
EDISON ENERGIA S.P.A.,13/10/2017,Energia elettrica,"391,01",3277,1,3,2,5,4
EDISON ENERGIA S.P.A.,13/10/2017,Energia elettrica,"368,41",3279,1,3,2,5,4
EDISON ENERGIA S.P.A.,13/10/2017,Energia elettrica,"346,53",3281,1,3,2,5,4
EDISON ENERGIA S.P.A.,13/10/2017,Energia elettrica,"261,14",3282,1,3,2,5,4
EDISON ENERGIA S.P.A.,13/10/2017,Energia elettrica,"5.896,99",3283,1,3,2,5,4
EDISON ENERGIA S.P.A.,13/10/2017,Energia elettrica,"26,64",3284,1,3,2,5,4
EDISON ENERGIA S.P.A.,13/10/2017,Energia elettrica,"117,01",3286,1,3,2,5,4
EDISON ENERGIA S.P.A.,13/10/2017,Energia elettrica,"129,08",3287,1,3,2,5,4
EDISON ENERGIA S.P.A.,13/10/2017,Energia elettrica,"137,83",3288,1,3,2,5,4
EDISON ENERGIA S.P.A.,13/10/2017,Energia elettrica,"121,29",3289,1,3,2,5,4
EDISON ENERGIA S.P.A.,13/10/2017,Energia elettrica,"98,09",3290,1,3,2,5,4
EDISON ENERGIA S.P.A.,13/10/2017,Energia elettrica,"339,05",3292,1,3,2,5,4
EDISON ENERGIA S.P.A.,13/10/2017,Energia elettrica,"400,76",3295,1,3,2,5,4
ENERGETIC S.P.A.,13/10/2017,Gas,"163,32",3273,1,3,2,5,6
ENERGETIC S.P.A.,13/10/2017,Gas,"92,10",3276,1,3,2,5,6
ENERGETIC S.P.A.,13/10/2017,Gas,"79,49",3278,1,3,2,5,6
ENERGETIC S.P.A.,13/10/2017,Gas,"79,49",3280,1,3,2,5,6
ENERGETIC S.P.A.,13/10/2017,Gas,"34,68",3285,1,3,2,5,6
ENERGETIC S.P.A.,13/10/2017,Gas,"2,92",3291,1,3,2,5,6
ENERGETIC S.P.A.,13/10/2017,Gas,"66,60",3293,1,3,2,5,6
ENERGETIC S.P.A.,13/10/2017,Gas,"362,91",3294,1,3,2,5,6
CESARETTI  SABRINA,26/10/2017,Incarichi professionali per la realizzazione di investimenti,"200,00",3436,2,2,3,5,1
BLITZ DISINFESTAZIONI SRL,26/10/2017,Manutenzione ordinaria e riparazioni di beni immobili,"2.379,00",3435,1,3,2,9,8
CENTRO TERMOTECNICA DI PASQUALI ANGELO E MASSIMO SNC,05/10/2017,Manutenzione ordinaria e riparazioni di impianti e macchinari,"1.213,90",3241,1,3,2,9,4
AUTOGAMMA SNC DI LETTIERI FABIO & C.,03/10/2017,"Manutenzione ordinaria e riparazioni di mezzi di trasporto ad uso civile, di sicurezza e ordine pubblico","40,00",3225,1,3,2,9,1
UNICOOP FIRENZE SOC. COOPERATIVA A RESPONSABILIT� LIMITATA,03/10/2017,"Manutenzione ordinaria e riparazioni di mezzi di trasporto ad uso civile, di sicurezza e ordine pubblico","17,80",3226,1,3,2,9,1
CENTRO RIPARAZIONI AGRICOLE E GIARDINAGGIO DI PERUZZI FABIO,05/10/2017,"Manutenzione ordinaria e riparazioni di mezzi di trasporto ad uso civile, di sicurezza e ordine pubblico","818,00",3236,1,3,2,9,1
S.T.F. S.R.L.,26/10/2017,Mobili e arredi n.a.c.,"356,24",3449,2,2,1,3,999
COOPERATIVA ARCHEOLOGIA SOC. COOP.,05/10/2017,"Musei, teatri e biblioteche","12.980,00",3245,2,2,1,9,18
BNP PARIBAS LEASE GROUP SA,26/10/2017,Noleggi di hardware,"137,32",3448,1,3,2,7,4
CONVERGE S.P.A.,26/10/2017,Noleggi di hardware,"634,89",3448,1,3,2,7,4
CO.PI.T.  SPA,13/10/2017,Noleggi di mezzi di trasporto,"450,00",3297,1,3,2,7,2
AMMINISTRATORI COMUNALI,25/10/2017,Organi istituzionali dell'amministrazione - indennit�,"8.330,37",3359,1,3,2,1,1
AMMINISTRATORI COMUNALI,25/10/2017,Organi istituzionali dell'amministrazione - indennit�,"4.167,53",3360,1,3,2,1,1
CAMERA DI CONCILIAZIONE E MEDIAZIONE DEL NORDEST SAS,16/10/2017,Patrocinio legale,"48,80",3298,1,3,2,11,6
CALUGI  LUISANNA,26/10/2017,Patrocinio legale,"789,56",3437,1,3,2,11,6
ASSOCIAZIONE IRIS,05/10/2017,Quote di associazioni,"4.667,09",3249,1,3,2,99,3
ASSOCIAZIONE IRIS,05/10/2017,Quote di associazioni,"132,91",3250,1,3,2,99,3
PERSONALE DIPENDENTE SEDE,25/10/2017,Rimborso per viaggio e trasloco,"128,96",3331,1,3,2,2,1
COOPERATIVA SOCIALE ZOE S.C.A.R.L.,12/10/2017,Servizi di pulizia e lavanderia,"2.387,00",3261,1,3,2,13,2
COOPERATIVA SOCIALE ZOE S.C.A.R.L.,12/10/2017,Servizi di pulizia e lavanderia,"158,89",3262,1,3,2,13,2
TIM S.P.A. DIREZIONE E COORDINAMENTO VIVENDI SA,17/10/2017,Servizi di rete per trasmissione dati e VoIP e relativa manutenzione,"580,76",3300,1,3,2,19,4
TIM S.P.A. DIREZIONE E COORDINAMENTO VIVENDI SA,17/10/2017,Servizi di rete per trasmissione dati e VoIP e relativa manutenzione,"375,62",3305,1,3,2,19,4
TIM S.P.A. DIREZIONE E COORDINAMENTO VIVENDI SA,17/10/2017,Servizi di rete per trasmissione dati e VoIP e relativa manutenzione,"207,92",3307,1,3,2,19,4
TIM S.P.A. DIREZIONE E COORDINAMENTO VIVENDI SA,17/10/2017,Servizi di rete per trasmissione dati e VoIP e relativa manutenzione,"83,08",3309,1,3,2,19,4
TIM S.P.A. DIREZIONE E COORDINAMENTO VIVENDI SA,17/10/2017,Servizi di rete per trasmissione dati e VoIP e relativa manutenzione,"124,84",3311,1,3,2,19,4
TIM S.P.A. DIREZIONE E COORDINAMENTO VIVENDI SA,17/10/2017,Servizi di rete per trasmissione dati e VoIP e relativa manutenzione,"124,84",3314,1,3,2,19,4
TIM S.P.A. DIREZIONE E COORDINAMENTO VIVENDI SA,17/10/2017,Servizi di rete per trasmissione dati e VoIP e relativa manutenzione,"112,40",3317,1,3,2,19,4
T.T. TECNOSISTEMI S.P.A.,17/10/2017,Servizi per i sistemi e relativa manutenzione,"5.868,20",3303,1,3,2,19,5
POSTE ITALIANE SPA SOCIETA' CON SOCIO UNICO,03/10/2017,Spese postali,"9,30",3224,1,3,2,16,2
TABACCHERIA DA VINCI DI PEDERSOLI ALESSANDRA,03/10/2017,Spese postali,"20,00",3224,1,3,2,16,2
POSTE ITALIANE SPA SOCIETA' CON SOCIO UNICO,05/10/2017,Spese postali,"6,84",3247,1,3,2,16,2
TIM S.P.A. DIREZIONE E COORDINAMENTO VIVENDI SA,17/10/2017,Telefonia fissa,"141,95",3304,1,3,2,5,1
TIM S.P.A. DIREZIONE E COORDINAMENTO VIVENDI SA,17/10/2017,Telefonia fissa,"114,51",3306,1,3,2,5,1
TIM S.P.A. DIREZIONE E COORDINAMENTO VIVENDI SA,17/10/2017,Telefonia fissa,"225,23",3308,1,3,2,5,1
TIM S.P.A. DIREZIONE E COORDINAMENTO VIVENDI SA,17/10/2017,Telefonia fissa,"188,39",3310,1,3,2,5,1
TIM S.P.A. DIREZIONE E COORDINAMENTO VIVENDI SA,17/10/2017,Telefonia fissa,"95,32",3313,1,3,2,5,1
TIM S.P.A. DIREZIONE E COORDINAMENTO VIVENDI SA,17/10/2017,Telefonia fissa,"108,57",3315,1,3,2,5,1
TIM S.P.A. DIREZIONE E COORDINAMENTO VIVENDI SA,17/10/2017,Telefonia fissa,"81,25",3316,1,3,2,5,1
TIM S.P.A. DIREZIONE E COORDINAMENTO VIVENDI SA,17/10/2017,Telefonia mobile,"1.924,73",3299,1,3,2,5,2
TIM S.P.A. DIREZIONE E COORDINAMENTO VIVENDI SA,17/10/2017,Telefonia mobile,"199,92",3301,1,3,2,5,2
TIM S.P.A. DIREZIONE E COORDINAMENTO VIVENDI SA,17/10/2017,Telefonia mobile,"633,17",3302,1,3,2,5,2
A.N.A.C. - AUTORITA' NAZIONALE ANTICORRUZIONE,30/10/2017,Trasferimenti correnti a altre Amministrazioni Centrali n.a.c.,"690,00",3451,1,4,1,1,999
A.S.D. BUNNY CLUB C/O SCARDIGLI LICIA,05/10/2017,Trasferimenti correnti a Istituzioni Sociali Private ,"500,00",3255,1,4,4,1,1
VITOLINI CALCIO A.S.D.,05/10/2017,Trasferimenti correnti a Istituzioni Sociali Private ,"4.000,00",3255,1,4,4,1,1
824ASSOCIAZIONE VOLO DI CECCO SANTI,12/10/2017,Trasferimenti correnti a Istituzioni Sociali Private ,"4.000,00",3271,1,4,4,1,1
ASSOCIAZIONE RAGAZZI DI CERBAIOLA,12/10/2017,Trasferimenti correnti a Istituzioni Sociali Private ,"700,00",3259,1,4,4,1,1
GIOVANI CALCIO VINCI - ASSOCIAZIONE SPORTIVA DILETTANTISTICA,12/10/2017,Trasferimenti correnti a Istituzioni Sociali Private ,"6.000,00",3270,1,4,4,1,1
ASSOCIAZIONE MONTALBANO DOMANI NO PROFIT,26/10/2017,Trasferimenti correnti a Istituzioni Sociali Private ,"1.000,00",3442,1,4,4,1,1
ASSOCIAZIONE MONTALBANO DOMANI NO PROFIT,26/10/2017,Trasferimenti correnti a Istituzioni Sociali Private ,"900,00",3443,1,4,4,1,1
CONSORZIO COLLINE DI VINCI,26/10/2017,Trasferimenti correnti a Istituzioni Sociali Private ,"1.500,00",3445,1,4,4,1,1
CONSORZIO COLLINE DI VINCI,26/10/2017,Trasferimenti correnti a Istituzioni Sociali Private ,"950,00",3446,1,4,4,1,1
CIRCONDARIO EMPOLESE VALDELSA - UFF. RAGIONERIA,26/10/2017,Trasferimenti correnti a Unioni di Comuni,"1.089,92",3444,1,4,1,2,5
ERARIO DELLO STATO PER PAGAMENTO I.V.A.,12/10/2017,Versamenti IVA a debito per le gestioni commerciali,"5.973,87",3267,1,10,3,1,1
